bitfinex-derivatives/quotes_SOLF0:USTF0_20250901
["timestamp","ask_amount","ask_price","bid_price","bid_amount"]
[1756734820659,2.81138098,199.67,199.57,7.97]
[1756734821157,77.72,199.66,199.59,2.81138098]
[1756734821362,115.26,199.67,199.6,7.97]
[1756734821658,115.26,199.67,199.61,0.03392253]
[1756734821659,2.81138098,199.66,199.61,0.03392253]
[1756734822060,129.71,199.65,199.61,8.00392253]
[1756734822457,2.41,199.65,199.61,8.00392253]
[1756734822661,127.3,199.64,199.61,8.00392253]
[1756734822861,2.41,199.65,199.61,8.00392253]
[1756734823160,127.3,199.64,199.61,8.00392253]
[1756734823560,127.3,199.64,199.61,0.03392253]
[1756734823962,127.3,199.64,199.61,8.00392253]
[1756734824558,127.28,199.63,199.61,8.00392253]
[1756734825662,127.28,199.63,199.61,0.03392253]
[1756734825866,129.69,199.63,199.61,0.03392253]
[1756734827664,127.26,199.63,199.61,0.03392253]
[1756734828369,2.41,199.62,199.61,0.03392253]
[1756734828964,127.26,199.63,199.61,0.03392253]
[1756734830367,129.67,199.63,199.61,0.03392253]
[1756734831267,127.26,199.63,199.62,7.97]
[1756734831766,2.81138098,199.67,199.62,7.97]
[1756734831968,5.22138098,199.7,199.61,8.00392253]
[1756734832168,127.24,199.69,199.61,8.00392253]
[1756734832364,6.09332105,199.7,199.61,8.00392253]
[1756734832365,3.68332105,199.7,199.61,8.00392253]
[1756734832568,127.24,199.69,199.61,8.00392253]
[1756734833166,0.87194007,199.7,199.61,8.00392253]
[1756734833470,127.24,199.71,199.63,7.97]
[1756734833666,336.6,199.72,199.66,7.97]
[1756734833875,127.22,199.75,199.66,7.97]
[1756734834266,127.22,199.75,199.67,0.03343709]
[1756734834568,2.41,199.74,199.67,0.03343709]
[1756734835673,127.22,199.75,199.68,7.97]
[1756734837278,2.42,199.73,199.67,0.03343709]
[1756734840571,5.23138098,199.77,199.68,7.97]
[1756734840770,2.42,199.77,199.69,7.97]
[1756734841365,2.42,199.77,199.71,0.03438672]
[1756734842871,5.23138098,199.77,199.71,0.03438672]
[1756734843476,2.42,199.75,199.71,0.03438672]
[1756734844172,48.36,199.76,199.71,0.03438672]
[1756734844577,2.42,199.75,199.71,0.03438672]
[1756734844780,48.36,199.76,199.71,0.03438672]
[1756734845480,2.42,199.75,199.71,0.03438672]
[1756734845877,48.36,199.76,199.71,0.03438672]
[1756734846179,89.38,199.76,199.71,0.03438672]
[1756734846580,2.42,199.75,199.71,0.03438672]
[1756734846982,2.42,199.79,199.71,0.03438672]
[1756734847172,5.23138098,199.79,199.71,0.03438672]
[1756734847377,2.42,199.79,199.71,0.03438672]
[1756734847577,2.42,199.79,199.72,7.97]
[1756734851284,127.93152517,199.81,199.72,7.97]
[1756734851479,127.06,199.81,199.72,7.97]
[1756734851681,2.41,199.83,199.73,8.07]
[1756734851879,336.74,199.84,199.76,8.07]
[1756734852479,336.74,199.84,199.78,0.03320946]
[1756734852883,336.74,199.84,199.8,8.07]
[1756734853081,336.74,199.84,199.81,4.62524559]
[1756734853281,336.74,199.84,199.82,4.62524559]
[1756734853481,336.74,199.84,199.83,4.62524559]
[1756734854081,339.15,199.84,199.83,4.62524559]
[1756734854282,336.74,199.84,199.83,4.62524559]
[1756734854682,127.04,199.86,199.83,4.62524559]
[1756734854879,127.04,199.86,199.84,4.62524559]
[1756734855090,127.04,199.86,199.85,4.62524559]
[1756734855386,127.02,199.88,199.85,4.62524559]
[1756734855584,127.02,199.88,199.86,4.62524559]
[1756734855786,127.02,199.88,199.87,4.62524559]
[1756734856088,127.02,199.88,199.85,0.03244496]
[1756734856387,127.02,199.88,199.86,4.60732114]
[1756734856588,127.02,199.88,199.85,0.03244496]
[1756734856784,127.02,199.88,199.86,4.6066456]
[1756734856980,129.43,199.88,199.85,0.03244496]
[1756734857380,2.41,199.87,199.85,0.03244496]
[1756734857586,2.41,199.86,199.85,0.03244496]
[1756734859293,50.13,199.86,199.85,0.03244496]
[1756734860589,2.41,199.86,199.85,0.03244496]
[1756734860792,97.79,199.86,199.85,0.03244496]
[1756734862593,2.41,199.86,199.85,0.03244496]
[1756734862894,52.39,199.86,199.85,0.03244496]
[1756734864792,49.98,199.86,199.75,8.07]
[1756734865100,5.22138098,199.82,199.76,4.61795518]
[1756734865292,2.41,199.81,199.77,4.61795518]
[1756734865491,2.41,199.81,199.78,4.61795518]
[1756734865686,2.41,199.81,199.79,4.61795518]
[1756734865891,2.41,199.81,199.8,4.61795518]
[1756734868101,2.41,199.81,199.67,2.81138098]
[1756734868303,2.41,199.77,199.68,8.07]
[1756734868598,13.69,199.77,199.68,8.07]
[1756734868790,0.03462904,199.74,199.68,8.07]
[1756734869299,0.03462904,199.74,199.69,2.81138098]
[1756734869597,17.88,199.8,199.69,2.81138098]
[1756734869798,17.88,199.8,199.7,8.07]
[1756734869989,0.03673576,199.73,199.7,8.07]
[1756734870394,17.88,199.8,199.7,8.07]
[1756734870590,0.03275973,199.73,199.65,8.07]
[1756734870789,0.03275973,199.73,199.68,8.07]
[1756734870991,5.22138098,199.78,199.68,8.07]
[1756734871390,0.03339045,199.72,199.67,8.07]
[1756734871792,0.03339045,199.72,199.7,8.07]
[1756734872000,0.03339045,199.72,199.69,2.81138098]
[1756734872198,0.03339045,199.72,199.7,8.07]
[1756734872394,5.22138098,199.82,199.7,8.07]
[1756734872595,7.56,199.81,199.7,8.07]
[1756734873804,7.56,199.81,199.74,0.03738098]
[1756734875909,5.22138098,199.82,199.74,0.03738098]
[1756734876103,20.82138098,199.82,199.74,0.03738098]
[1756734876409,27.58138098,199.82,199.74,0.03738098]
[1756734876703,5.22138098,199.82,199.74,0.03738098]
[1756734876905,2.81138098,199.85,199.75,8.07]
[1756734877105,8.4,199.84,199.75,8.07]
[1756734877705,8.4,199.84,199.78,0.03696621]
[1756734878910,2.41,199.81,199.78,0.03696621]
[1756734879107,2.81138098,199.82,199.78,0.03696621]
[1756734879309,2.41,199.81,199.78,0.03696621]
[1756734879505,2.81138098,199.82,199.78,0.03696621]
[1756734879712,2.81138098,199.79,199.78,0.03696621]
[1756734879906,2.81138098,199.79,199.67,7.64]
[1756734880106,2.38,199.75,199.67,7.64]
[1756734880309,2.38,199.75,199.68,4.59024514]
[1756734880511,8.63138098,199.76,199.69,4.59024514]
[1756734880710,2.38,199.72,199.7,4.59024514]
[1756734881009,2.38,199.72,199.63,7.64]
[1756734884314,2.38,199.69,199.63,7.64]
[1756734884519,2.38,199.69,199.59,7.64]
[1756734884810,2.81138098,199.67,199.59,7.64]
[1756734885013,0.03739047,199.66,199.59,7.64]
[1756734885314,2.41739047,199.66,199.59,7.64]
[1756734886714,0.03739047,199.66,199.59,7.64]
[1756734892828,2.38,199.65,199.53,7.64]
[1756734893119,2.81138098,199.64,199.53,7.64]
[1756734893520,0.03729602,199.6,199.55,2.81138098]
[1756734893914,0.03729602,199.6,199.56,7.64]
[1756734894118,0.03729602,199.6,199.55,2.81138098]
[1756734894322,0.03729602,199.6,199.56,7.64]
[1756734894518,0.03729602,199.6,199.55,2.81138098]
[1756734894720,0.03729602,199.6,199.56,7.64]
[1756734895826,0.58,199.68,199.59,7.64]
[1756734896324,5.19138098,199.69,199.59,7.64]
[1756734896529,12.53138098,199.69,199.59,7.64]
[1756734896827,5.19138098,199.69,199.59,7.64]
[1756734897023,19.49138098,199.69,199.62,0.03282195]
[1756734898731,5.19138098,199.69,199.62,0.03282195]
[1756734898926,29.01138098,199.69,199.62,0.03282195]
[1756734900430,2.44,199.65,199.62,0.03282195]
[1756734901227,2.81138098,199.66,199.62,0.03282195]
[1756734901422,2.44,199.65,199.62,0.03282195]
[1756734901635,2.81138098,199.66,199.62,0.03282195]
[1756734901832,2.44,199.65,199.62,0.03282195]
[1756734902033,2.81138098,199.66,199.62,0.03282195]
[1756734902636,5.25138098,199.63,199.62,0.03282195]
[1756734903433,2.44,199.63,199.54,7.64]
[1756734904230,2.44,199.63,199.56,7.64]
[1756734904437,0.03324518,199.64,199.58,7.64]
[1756734904637,2.44,199.64,199.59,12.1897685]
[1756734904838,103.04,199.66,199.6,4.5497685]
[1756734905134,0.03810613,199.63,199.61,12.1897685]
[1756734905337,0.03810613,199.63,199.62,4.5497685]
[1756734906836,2.47810613,199.63,199.62,4.5497685]
[1756734907039,0.03810613,199.63,199.62,4.5497685]
[1756734910140,0.03810613,199.63,199.59,7.68]
[1756734910339,2.45,199.62,199.5,2.81138098]
[1756734910540,2.81138098,199.6,199.51,7.68]
[1756734910737,50.28,199.59,199.51,7.68]
[1756734910936,2.81138098,199.57,199.51,7.68]
[1756734911247,2.84843872,199.57,199.51,7.68]
[1756734911441,87.48,199.56,199.51,7.68]
[1756734911642,127.04843872,199.57,199.48,7.68]
[1756734911836,0.03705774,199.57,199.52,0.03845632]
[1756734912440,2.48705774,199.57,199.53,7.68]
[1756734912936,2.45,199.56,199.52,7.71845632]
[1756734913144,0.03705774,199.57,199.53,7.68]
[1756734913345,41.21705774,199.57,199.53,7.68]
[1756734913843,2.45,199.56,199.52,0.03845632]
[1756734914239,0.03705774,199.57,199.53,7.68]
[1756734914437,41.17705774,199.57,199.53,7.68]
[1756734914947,43.62705774,199.57,199.53,7.68]
[1756734915143,2.81138098,199.55,199.52,0.03845632]
[1756734915648,2.45,199.54,199.52,0.03845632]
[1756734916949,2.81138098,199.55,199.52,0.03845632]
[1756734917448,2.45,199.54,199.52,0.03845632]
[1756734917846,2.81138098,199.55,199.52,0.03845632]
[1756734918346,2.45,199.53,199.44,7.68]
[1756734918654,2.81138098,199.51,199.44,7.68]
[1756734918850,2.45,199.5,199.44,7.68]
[1756734919254,5.26138098,199.49,199.44,7.68]
[1756734919546,2.45,199.48,199.44,7.68]
[1756734919753,2.45,199.48,199.39,7.68]
[1756734920449,0.03622564,199.45,199.39,7.68]
[1756734921959,5.26138098,199.44,199.39,7.68]
[1756734922455,2.45,199.43,199.39,7.68]
[1756734923350,89.94138098,199.44,199.33,7.68]
[1756734923855,5.26138098,199.44,199.33,7.68]
[1756734924249,0.03650761,199.4,199.33,7.68]
[1756734924555,0.03650761,199.4,199.33,2.81138098]
[1756734924856,0.03650761,199.4,199.37,7.68]
[1756734925456,38.67,199.48,199.37,8.18]
[1756734925651,38.67,199.48,199.37,7.68]
[1756734926555,0.03800465,199.44,199.37,7.68]
[1756734928248,0.03800465,199.44,199.38,7.68]
[1756734930653,0.03800465,199.44,199.41,7.68]
[1756734930857,0.03800465,199.44,199.4,2.81138098]
[1756734931057,37.71138098,199.52,199.4,2.81138098]
[1756734931058,2.49,199.5,199.41,7.68]
[1756734931358,0.03422859,199.44,199.38,4.18380912]
[1756734932153,0.03422859,199.44,199.39,7.68]
[1756734932455,0.03422859,199.44,199.38,4.18380912]
[1756734932655,0.03422859,199.44,199.38,6.9951901]
[1756734932855,0.03422859,199.44,199.39,7.68]
[1756734933454,0.03422859,199.44,199.38,4.18380912]
[1756734933651,0.03422859,199.44,199.37,11.86380912]
[1756734934465,0.03422859,199.44,199.37,7.68]
[1756734934660,2.49,199.43,199.35,4.18380912]
[1756734934854,5.30138098,199.43,199.35,4.18380912]
[1756734935254,2.49,199.39,199.31,5.60234742]
[1756734935461,2.49,199.39,199.33,4.2253293]
[1756734935657,2.49,199.36,199.33,4.2253293]
[1756734935853,2.49,199.36,199.31,11.9053293]
[1756734936054,2.49,199.36,199.29,4.2253293]
[1756734936255,2.39474422,199.35,199.3,7.68]
[1756734936461,2.39431022,199.34,199.3,7.68]
[1756734936656,5.30138098,199.37,199.27,4.2253293]
[1756734936857,0.03403674,199.34,199.26,11.9053293]
[1756734937057,0.03403674,199.34,199.26,7.68]
[1756734938762,2.3946314,199.33,199.26,7.68]
[1756734938962,2.3946314,199.32,199.26,7.68]
[1756734939165,0.03403674,199.34,199.26,7.68]
[1756734939354,2.39505849,199.33,199.27,2.81138098]
[1756734939558,2.39505849,199.32,199.28,8.07]
[1756734939759,7.88138098,199.41,199.28,8.07]
[1756734939964,2.51,199.39,199.28,8.07]
[1756734940164,0.03283085,199.32,199.27,2.81138098]
[1756734940462,0.03283085,199.32,199.28,8.07]
[1756734940658,0.03283085,199.32,199.27,2.81138098]
[1756734940854,2.81138098,199.41,199.28,8.07]
[1756734941056,2.54,199.39,199.3,8.07]
[1756734941253,2.39610807,199.38,199.3,8.07]
[1756734941458,2.39610807,199.37,199.3,8.07]
[1756734941654,2.39610807,199.36,199.3,8.07]
[1756734941852,2.39610807,199.35,199.29,2.81138098]
[1756734942161,2.39610807,199.34,199.31,0.03177105]
[1756734942459,2.39610807,199.33,199.32,8.07]
[1756734942666,2.39610807,199.38,199.32,8.07]
[1756734942860,4.93610807,199.37,199.31,0.03177105]
[1756734943064,2.40257546,199.36,199.31,0.03177105]
[1756734943262,2.40257546,199.35,199.32,8.07]
[1756734943460,2.40257546,199.34,199.32,8.07]
[1756734943661,2.40257546,199.33,199.32,8.07]
[1756734943957,2.40257546,199.33,199.31,0.03177105]
[1756734944159,4.94257546,199.32,199.31,0.03177105]
[1756734945068,7.75395644,199.32,199.31,0.03177105]
[1756734945655,2.40257546,199.32,199.31,0.03177105]
[1756734945964,4.94257546,199.32,199.31,0.03177105]
[1756734946962,2.54,199.32,199.31,0.03177105]
[1756734947565,5.35138098,199.32,199.31,0.03177105]
[1756734948465,132.03138098,199.32,199.31,0.03177105]
[1756734948968,5.35138098,199.32,199.31,0.03177105]
[1756734949162,132.03138098,199.32,199.31,0.03177105]
[1756734949661,126.68,199.35,199.31,0.03177105]
[1756734949964,126.68,199.35,199.31,8.10177105]
[1756734950562,2.81138098,199.37,199.31,8.10177105]
[1756734950763,2.54,199.38,199.31,8.10177105]
[1756734951066,463.82,199.4,199.32,4.58959004]
[1756734951264,463.82,199.4,199.33,12.65959004]
[1756734951466,463.82,199.4,199.34,4.58959004]
[1756734951667,2.54,199.39,199.35,4.58959004]
[1756734951863,466.63138098,199.4,199.36,4.58959004]
[1756734952064,2.54,199.39,199.37,4.58959004]
[1756734952369,2.54,199.39,199.38,4.58959004]
[1756734952566,463.82,199.4,199.38,4.58959004]
[1756734952865,469.17138098,199.4,199.39,4.58959004]
[1756734953857,342.49138098,199.4,199.39,4.58959004]
[1756734954056,466.34,199.4,199.39,4.58959004]
[1756734954260,466.84,199.4,199.39,4.58959004]
[1756734954460,466.84,199.4,199.35,0.03289905]
[1756734954461,2.54,199.39,199.35,0.03289905]
[1756734954666,464.3,199.4,199.35,0.03289905]
[1756734954667,463.8,199.4,199.35,0.03289905]
[1756734955065,2.54,199.39,199.35,0.03289905]
[1756734955265,463.8,199.4,199.35,0.03289905]
[1756734955467,2.54,199.39,199.35,0.03289905]
[1756734955666,463.8,199.4,199.35,0.03289905]
[1756734955868,2.52,199.39,199.35,0.03289905]
[1756734956465,337.14,199.4,199.35,0.03289905]
[1756734956671,126.66,199.38,199.36,8.07]
[1756734957368,126.66,199.38,199.35,0.03289905]
[1756734957872,126.66,199.38,199.35,8.10289905]
[1756734958571,337.14,199.4,199.35,8.10289905]
[1756734958771,126.64,199.39,199.35,8.10289905]
[1756734959472,126.64,199.39,199.36,8.07]
[1756734959674,126.64,199.38,199.36,8.07]
[1756734960166,126.64,199.38,199.35,0.03289905]
[1756734960366,2.52,199.37,199.35,0.03289905]
[1756734960560,2.52,199.42,199.35,0.03289905]
[1756734960766,126.64,199.41,199.35,0.03289905]
[1756734961067,2.52,199.42,199.35,0.03289905]
[1756734961068,2.52,199.42,199.35,8.10289905]
[1756734961270,36.8,199.41,199.35,8.10289905]
[1756734961970,2.52,199.46,199.35,8.10289905]
[1756734962272,126.64,199.45,199.35,8.10289905]
[1756734962472,126.64,199.45,199.35,8.07]
[1756734963968,126.64,199.45,199.38,0.0332857]
[1756734964672,337.2,199.49,199.39,8.07]
[1756734964873,463.82,199.49,199.39,8.07]
[1756734965774,2.52,199.48,199.39,8.07]
[1756734966575,2.52,199.48,199.4,4.545675]
[1756734966774,2.52,199.48,199.41,4.545675]
[1756734966977,2.52,199.48,199.42,4.545675]
[1756734967177,129.12,199.48,199.44,8.07]
[1756734967470,2.52,199.47,199.45,4.545675]
[1756734967678,2.52,199.47,199.46,4.545675]
[1756734968675,3.02,199.47,199.46,2.025675]
[1756734969476,3.02,199.47,199.3,12.62]
[1756734969477,0.5,199.47,199.28,8.17]
[1756734969778,4.50978303,199.41,199.29,8.17]
[1756734969968,50.14,199.4,199.29,8.17]
[1756734970770,0.03569487,199.36,199.29,8.17]
[1756734971173,63.36,199.35,199.29,8.17]
[1756734971575,0.03569487,199.36,199.29,8.17]
[1756734973973,0.03569487,199.36,199.32,8.17]
[1756734974576,0.03569487,199.36,199.31,2.81837882]
[1756734974773,0.03569487,199.36,199.32,8.17]
[1756734975175,0.03569487,199.36,199.31,2.81837882]
[1756734975576,0.03569487,199.36,199.32,8.17]
[1756734975781,0.03569487,199.36,199.31,2.81837882]
[1756734975981,0.03569487,199.36,199.32,8.17]
[1756734976276,0.03569487,199.36,199.28,2.81837882]
[1756734976481,0.03569487,199.36,199.29,8.17]
[1756734980786,0.03569487,199.36,199.3,4.61503845]
[1756734980980,0.03569487,199.36,199.31,4.61503845]
[1756734981184,0.03569487,199.36,199.32,4.61503845]
[1756734981384,0.03569487,199.36,199.33,4.61503845]
[1756734981586,0.03569487,199.36,199.34,4.61503845]
[1756734981786,0.03569487,199.36,199.35,4.61503845]
[1756734982289,0.53569487,199.36,199.35,4.61503845]
[1756734982787,0.53569487,199.36,199.25,8.17]
[1756734982987,0.03569487,199.36,199.25,8.17]
[1756734983187,4.5113885,199.35,199.25,8.17]
[1756734983984,0.03261644,199.32,199.25,8.17]
[1756734989794,0.05,199.42,199.25,8.17]
[1756734989999,34.24,199.41,199.28,8.17]
[1756734990505,0.05,199.4,199.28,8.17]
[1756734991906,35.26,199.43,199.31,8.17]
[1756734992700,35.26,199.43,199.35,0.03465486]
[1756734992905,35.26,199.43,199.35,8.20465486]
[1756734995204,0.05,199.44,199.35,8.20465486]
[1756734995410,103.07,199.44,199.35,8.20465486]
[1756734996308,0.05,199.44,199.35,8.20465486]
[1756734996507,0.05,199.47,199.35,8.20465486]
[1756734996911,0.05,199.47,199.35,8.17]
[1756734997608,0.05,199.47,199.37,8.17]
[1756734997803,0.04,199.47,199.38,4.79446904]
[1756734998010,71.22,199.48,199.39,4.79446904]
[1756734998209,4.5113885,199.46,199.4,4.79446904]
[1756734998406,0.04,199.45,199.41,4.79446904]
[1756734998707,0.04,199.45,199.42,4.79446904]
[1756734998910,71.22,199.48,199.43,4.75446904]
[1756734999213,4.5113885,199.43,199.41,0.03214315]
[1756734999401,4.5113885,199.43,199.27,7.43]
[1756735000008,2.81941154,199.4,199.29,7.43]
[1756735000209,47.25941154,199.4,199.29,7.43]
[1756735001608,47.25941154,199.4,199.33,0.03252229]
[1756735002610,2.81941154,199.4,199.33,0.03252229]
[1756735003011,38.54,199.39,199.33,0.03252229]
[1756735004316,2.81941154,199.4,199.33,0.03252229]
[1756735005119,75.14,199.41,199.33,0.03252229]
[1756735009216,357.84387261,199.49,199.33,0.03252229]
[1756735009418,2.81941154,199.44,199.34,7.43]
[1756735009814,41.29941154,199.44,199.34,7.43]
[1756735011014,41.29941154,199.44,199.35,4.56559876]
[1756735011216,41.29941154,199.44,199.36,4.56559876]
[1756735011412,41.29941154,199.44,199.37,4.56559876]
[1756735011611,41.29941154,199.44,199.38,4.56559876]
[1756735011807,41.29941154,199.44,199.39,4.56559876]
[1756735012008,2.81941154,199.47,199.4,4.56559876]
[1756735012314,129.37941154,199.47,199.41,4.56559876]
[1756735012509,129.37941154,199.47,199.42,4.56559876]
[1756735012716,129.37941154,199.47,199.43,4.56559876]
[1756735012915,2.81941154,199.47,199.44,4.56559876]
[1756735013217,126.56,199.46,199.45,4.56559876]
[1756735016522,127.06,199.46,199.33,7.43]
[1756735016722,2.81941154,199.43,199.33,7.43]
[1756735017218,2.81941154,199.4,199.33,7.43]
[1756735017419,126.54,199.39,199.33,7.43]
[1756735017821,0.03851222,199.38,199.33,7.43]
[1756735018121,0.03851222,199.38,199.31,7.43]
[1756735020419,126.54,199.37,199.31,7.43]
[1756735020820,0.03851222,199.38,199.31,7.43]
[1756735021120,35.73851222,199.38,199.31,7.43]
[1756735022014,0.03851222,199.38,199.31,7.43]
[1756735022724,0.03851222,199.38,199.32,2.81941154]
[1756735023122,37.54,199.42,199.33,7.43]
[1756735023424,0.03454719,199.37,199.32,2.81941154]
[1756735023617,0.03454719,199.37,199.33,7.43]
[1756735023924,0.03454719,199.37,199.32,2.81941154]
[1756735024422,0.03454719,199.37,199.33,7.43]
[1756735024929,0.03454719,199.37,199.31,2.81941154]
[1756735025223,0.03454719,199.37,199.32,7.43]
[1756735025430,2.81941154,199.39,199.31,7.43]
[1756735025629,0.03188013,199.36,199.25,2.81941154]
[1756735025822,0.03188013,199.36,199.26,7.43]
[1756735026930,0.03188013,199.36,199.22,135.99550166]
[1756735026931,0.03188013,199.36,199.29,7.43]
[1756735027120,0.03188013,199.36,199.32,7.43]
[1756735027323,42.46,199.44,199.32,7.43]
[1756735027828,0.03587367,199.36,199.32,7.43]
[1756735028027,42.46,199.44,199.35,7.47]
[1756735028327,42.46,199.44,199.38,7.47]
[1756735028529,42.46,199.44,199.4,7.47]
[1756735028727,42.46,199.44,199.41,4.70026772]
[1756735028928,42.46,199.44,199.42,12.17026772]
[1756735029228,0.04,199.46,199.43,4.70026772]
[1756735029529,0.04,199.48,199.44,4.70026772]
[1756735029830,0.04,199.48,199.45,4.70026772]
[1756735030028,0.04,199.48,199.46,4.70026772]
[1756735030324,0.04,199.48,199.47,4.70026772]
[1756735030727,337.2,199.49,199.47,4.70026772]
[1756735030927,0.04,199.55,199.48,4.70026772]
[1756735031124,0.04,199.55,199.46,0.03482611]
[1756735031125,126.56,199.54,199.49,12.17026772]
[1756735031427,0.04,199.54,199.5,12.17026772]
[1756735031627,126.52,199.55,199.51,12.17026772]
[1756735031826,0.04,199.58,199.52,4.70026772]
[1756735032125,126.52,199.57,199.53,4.70026772]
[1756735032330,126.52,199.57,199.54,4.70026772]
[1756735032525,2.85941154,199.56,199.55,4.70026772]
[1756735032727,2.81941154,199.56,199.43,7.47]
[1756735033029,2.81941154,199.56,199.54,0.03577314]
[1756735033226,2.81941154,199.56,199.43,7.47]
[1756735033628,2.81941154,199.56,199.53,0.03210824]
[1756735033829,2.81941154,199.56,199.43,7.47]
[1756735034032,4.50475522,199.56,199.43,7.47]
[1756735034232,4.50475522,199.55,199.53,0.03327663]
[1756735034634,4.50475522,199.55,199.43,7.47]
[1756735034834,4.50475522,199.55,199.52,0.03368148]
[1756735035234,4.50475522,199.55,199.43,7.47]
[1756735035435,4.50475522,199.55,199.52,0.03750558]
[1756735035827,4.50475522,199.55,199.43,7.47]
[1756735036330,126.48,199.54,199.52,0.03189477]
[1756735036527,126.48,199.54,199.43,7.47]
[1756735036733,126.48,199.54,199.51,0.03373342]
[1756735037737,126.48,199.54,199.51,7.50373342]
[1756735038236,126.48,199.54,199.51,0.03373342]
[1756735040835,130.98475522,199.54,199.51,0.03373342]
[1756735041741,126.44,199.54,199.51,7.50373342]
[1756735042437,126.44,199.54,199.51,0.03373342]
[1756735044836,126.44,199.54,199.52,4.58910556]
[1756735045042,126.44,199.54,199.51,0.03373342]
[1756735045242,126.44,199.54,199.52,4.5892054]
[1756735045445,126.44,199.54,199.51,0.03373342]
[1756735045643,126.44,199.54,199.52,4.58914616]
[1756735045942,126.44,199.54,199.51,0.03373342]
[1756735047433,357.80387261,199.62,199.51,0.03373342]
[1756735047638,357.80387261,199.62,199.51,7.50373342]
[1756735047639,4.50475522,199.59,199.51,7.50373342]
[1756735047839,126.42,199.58,199.51,7.50373342]
[1756735048039,126.42,199.58,199.52,4.85840869]
[1756735048343,126.42,199.58,199.53,4.85840869]
[1756735048540,126.42,199.58,199.54,4.85840869]
[1756735048737,126.42,199.58,199.55,4.85840869]
[1756735049045,126.42,199.58,199.56,4.85840869]
[1756735049342,126.42,199.58,199.57,4.85840869]
[1756735050338,4.50475522,199.61,199.57,4.85840869]
[1756735050544,4.50475522,199.61,199.56,0.03616423]
[1756735050545,126.42,199.6,199.58,4.85840869]
[1756735050739,126.42,199.6,199.59,4.85840869]
[1756735052746,337.16,199.62,199.59,4.85840869]
[1756735052948,126.4,199.61,199.6,4.85840869]
[1756735053242,337.16,199.62,199.6,4.85840869]
[1756735053546,337.16,199.62,199.61,4.85840869]
[1756735056748,337.16,199.62,199.56,0.03616423]
[1756735056944,2.81259231,199.6,199.57,4.66929775]
[1756735057141,126.38,199.59,199.56,7.50616423]
[1756735058251,126.38,199.59,199.57,4.72498653]
[1756735058551,126.38,199.59,199.58,4.72561653]
[1756735063253,2.81259231,199.61,199.56,0.03616423]
[1756735063454,126.36,199.6,199.56,0.03616423]
[1756735067056,3.68491487,199.61,199.57,8.0]
[1756735067251,126.36,199.6,199.57,8.0]
[1756735067557,126.36,199.6,199.56,0.03616423]
[1756735067756,3.68491487,199.61,199.56,0.03616423]
[1756735068057,126.36,199.6,199.57,4.67238813]
[1756735068254,126.36,199.59,199.58,4.67238813]
[1756735068955,126.36,199.59,199.56,0.03616423]
[1756735069162,126.36,199.59,199.57,4.67236964]
[1756735069355,126.36,199.59,199.58,4.67236964]
[1756735070359,3.68491487,199.61,199.58,4.67236964]
[1756735070558,2.81259231,199.67,199.6,8.0]
[1756735070860,126.34,199.66,199.61,4.67236964]
[1756735071050,126.34,199.66,199.62,4.67236964]
[1756735071248,126.34,199.66,199.63,4.67236964]
[1756735071452,126.34,199.66,199.64,4.67236964]
[1756735071648,126.34,199.66,199.65,4.67236964]
[1756735074363,126.34,199.66,199.62,0.03365793]
[1756735074859,2.81259231,199.64,199.62,0.03365793]
[1756735075758,126.32,199.63,199.62,0.03365793]
[1756735076959,126.32,199.63,199.54,8.0]
[1756735077160,2.81259231,199.61,199.54,8.0]
[1756735078267,0.03636397,199.59,199.54,8.0]
[1756735078470,0.03636397,199.59,199.51,8.0]
[1756735084171,0.03636397,199.59,199.51,10.81259231]